fUSD/lending_fUSD_20250816
["ID","MTS","AMOUNT","RATE_DAILY","PERIOD"]
[379477537,1755309633273,171.84,0.00024685,30]
[379477538,1755309643423,170.0,0.00017792,7]
[379477539,1755309648987,-818.98,0.00017793,2]
[379477540,1755309680809,10000.0,0.00028,30]
[379477541,1755309848661,-1152.4,0.00017712,2]
[379477542,1755309855819,-364.02,0.00017712,2]
[379477543,1755309863412,-206.97320948,0.00017712,2]
[379477544,1755309915548,534.25,0.00028,30]
[379477545,1755309924680,10000.0,0.00028,30]
[379477546,1755309940707,5000.0,0.00028,30]
[379477547,1755309942055,2642.41,0.00028,30]
[379477548,1755309951020,5000.0,0.00028,30]
[379477550,1755309962349,3000.0,0.00028,30]
[379477551,1755309973523,3000.0,0.00028,30]
[379477552,1755309980908,3000.0,0.00028,30]
[379477553,1755309995574,3000.0,0.00028,30]
[379477554,1755310007214,3000.0,0.00028,30]
[379477555,1755310015165,3000.0,0.00028,30]
[379477556,1755310021348,3000.0,0.00028,30]
[379477565,1755310033950,3000.0,0.00028,30]
[379477570,1755310041377,3000.0,0.00028,30]
[379477571,1755310049024,33441.91103749,0.00028,30]
[379477572,1755310056356,1829.06,0.00028,30]
[379477573,1755310065116,159.31520547,0.00026603,30]
[379477574,1755310065196,159.31520547,0.00026904,30]
[379477575,1755310065317,159.31520547,0.00027178,30]
[379477576,1755310065530,159.31520547,0.00027479,30]
[379477577,1755310065666,159.31520547,0.00027781,30]
[379477578,1755310068813,1978685.49898298,0.00028,30]
[379477581,1755310166044,765.3238973,0.00025999,30]
[379477582,1755310172638,-163.1615912,0.00017686,2]
[379477584,1755310214264,334.29,0.00013699,2]
[379477610,1755310232192,-3.4384088,0.00017686,2]
[379477611,1755310232202,-88.22679052,0.00017712,2]
[379477612,1755310232213,-181.02,0.00017793,2]
[379477613,1755310232223,-150.0,0.0001781,2]
[379477614,1755310232233,-2154.81466498,0.00018,2]
[379477615,1755310232244,-1594.0,0.00018052,2]
[379477616,1755310232254,-233.0,0.00018495,2]
[379477617,1755310232267,-233.0,0.00018556,2]
[379477618,1755310232278,-1594.0,0.00018573,2]
[379477619,1755310232288,-233.0,0.0001859,2]
[379477620,1755310232298,-200.0,0.00018592,2]
[379477621,1755310232309,-360.1535,0.000186,2]
[379477622,1755310232319,-420.62846703,0.000186,2]
[379477623,1755310232330,-277.35679052,0.0001862,2]
[379477624,1755310232340,-1200.0,0.00018629,2]
[379477625,1755310232355,-567.807,0.00018632,2]
[379477626,1755310232365,-599.0,0.00018632,2]
[379477627,1755310232378,-1297.0,0.00018632,2]
[379477628,1755310232387,-1168.41378553,0.00018632,2]
[379477636,1755310232654,-487.58621447,0.00018632,2]
[379477637,1755310232675,-894.0,0.00018632,2]
[379477638,1755310232697,-1172.0,0.00018632,2]
[379477639,1755310232707,-6027.03474874,0.00018632,2]
[379477640,1755310232723,-61.96525126,0.00018632,2]
[379477641,1755310232733,-4150.0,0.00018632,2]
[379477642,1755310232742,-420.62846698,0.00018633,2]
[379477643,1755310232751,-858.82602832,0.00018651,2]
[379477644,1755310232761,-301.06054315,0.00018656,2]
[379477645,1755310232770,-1202.05620893,0.00018656,2]
[379477646,1755310232780,-202.2793456,0.00018658,2]
[379477647,1755310232790,-331.10174888,0.0001866,2]
[379477648,1755310232799,-301.06054315,0.00018661,2]
[379477649,1755310232809,-343.23018063,0.00018661,2]
[379477650,1755310232819,-331.10174888,0.00018663,2]
[379477651,1755310232828,-365.21747542,0.00018663,2]
[379477652,1755310232839,-230.89698546,0.00018664,2]
[379477653,1755310232848,-858.82602832,0.00018666,2]
[379477654,1755310232857,-420.62846698,0.00018667,2]
[379477655,1755310232867,-202.2793456,0.00018668,2]
[379477656,1755310232877,-202.38312534,0.00018668,2]
[379477657,1755310232886,-202.38312534,0.00018669,2]
[379477658,1755310232895,-343.23018063,0.0001867,2]
[379477659,1755310232904,-343.23018063,0.0001867,2]
[379477660,1755310232914,-211.92094487,0.00018671,2]
[379477661,1755310232923,-894.33509838,0.00018672,2]
[379477662,1755310232934,-252.68558974,0.00018675,2]
[379477663,1755310232943,-343.23018063,0.00018676,2]
[379477664,1755310232953,-168.0,0.00018679,2]
[379477665,1755310232962,-365.21747542,0.00018682,2]
[379477666,1755310232972,-309.061292,0.00018684,2]
[379477667,1755310232981,-202.2793456,0.00018686,2]
[379477668,1755310232990,-1202.05620893,0.00018686,2]
[379477669,1755310232999,-160.0,0.00018689,2]
[379477670,1755310233009,-331.10174888,0.00018689,2]
[379477671,1755310233019,-1238.34,0.0001869,2]
[379477672,1755310233029,-301.06054315,0.00018692,2]
[379477673,1755310233044,-252.68558974,0.00018692,2]
[379477674,1755310233054,-365.21747542,0.00018694,2]
[379477675,1755310233064,-343.23018063,0.00018695,2]
[379477676,1755310233074,-230.89698546,0.00018696,2]
[379477677,1755310233085,-894.3350983,0.00018697,2]
[379477678,1755310233095,-233.0,0.00018698,2]
[379477679,1755310233106,-150.0,0.00018699,2]
[379477680,1755310233116,-1202.05620893,0.00018699,2]
[379477681,1755310233127,-538.83,0.000187,2]
[379477682,1755310233137,-213918.07505442,0.000187,2]
[379477683,1755310233150,-261.36889935,0.000187,2]
[379477687,1755310238236,-717.0,0.00018632,2]
[379477688,1755310238247,-1486.23022411,0.000187,2]
[379477689,1755310238260,-9061.49703077,0.000187,2]
[379477848,1755310240165,-1600.65,0.000187,2]
[379477850,1755310240176,-717.10633169,0.000187,2]
[379477852,1755310240188,-301.92197159,0.000187,2]
[379477854,1755310240199,-11797.0,0.000187,2]
[379477859,1755310240234,-963.19752,0.000187,2]
[379477864,1755310240273,-455.95774927,0.000187,2]
[379478142,1755310242989,-1973.55692469,0.00018632,2]
[379478144,1755310243000,-2691.625,0.00018632,2]
[379478146,1755310243011,-1772.16665824,0.00018632,2]
[379478162,1755310243146,-595.17495863,0.00018632,2]
[379478174,1755310243253,-699.32163048,0.00018632,2]
[379478399,1755310245979,-13757.15482796,0.00018632,2]
[379478400,1755310245988,-8265.82477923,0.000187,2]
[379478412,1755310246140,-1171.17043957,0.000187,2]
[379478413,1755310246149,-346.8,0.000187,2]
[379478415,1755310246159,-173.45,0.000187,2]
[379478417,1755310246169,-360.29,0.000187,2]
[379478418,1755310246178,-945.04,0.000187,2]
[379478420,1755310246188,-284.30146583,0.000187,2]
[379479653,1755310259117,339.0,0.00026,30]
[379480380,1755310281057,5051.0,0.00025999,30]
[379480381,1755310486703,200.17909658,0.00026,30]
[379480382,1755310610616,-300.0,0.00017792,2]
[379480383,1755310617685,-400.0,0.00017791,2]
[379480384,1755310625204,-310.0,0.00017791,2]
[379480385,1755310632329,-179.16,0.00017791,2]
[379480386,1755310632342,-41.68,0.00017791,2]
[379480387,1755310632351,-179.16,0.00017792,2]
[379480388,1755310639352,-300.0,0.00017792,2]
[379480389,1755310647231,-202.94,0.00017792,2]
[379480390,1755310809853,170.0,0.00017785,7]
[379480391,1755310892403,-150.0,0.00017726,2]
[379480392,1755310892433,-17.9,0.00017792,2]
[379480393,1755310893044,-7797.02487641,0.00017792,2]
[379480394,1755310899165,-1841.33904408,0.00017792,2]
[379480395,1755310906135,-1271.02,0.00017792,2]
[379480396,1755310914872,-1327.47679052,0.00017792,2]
[379480397,1755310922466,-1213.86320948,0.00017792,2]
[379480398,1755310928576,-1134.75,0.00017792,2]
[379480399,1755310936697,-199.21197228,0.00017792,2]
[379480400,1755311052751,-28.31410723,0.00017792,2]
[379480401,1755311052778,-250.0,0.00018079,2]
[379480402,1755311052804,-191.89,0.00018366,2]
[379480403,1755311052831,-500.0,0.000185,2]
[379480404,1755311097142,43529.79589277,0.00018,2]
[379480405,1755311106758,150.00000001,0.00017088,2]
[379480406,1755311106828,150.0,0.00017088,2]
[379480407,1755311129029,328.78,0.00013699,2]
[379480409,1755311203597,-230.43168911,0.00017761,2]
[379480429,1755311270885,157.52,0.00024685,30]
[379480430,1755311286462,-300.0,0.00017579,2]
[379480431,1755311286502,-14823.12629391,0.0001758,2]
[379480432,1755311295153,-1474.43,0.0001758,2]
[379480433,1755311301267,-2007.41,0.0001758,2]
[379480434,1755311308277,-175.12034671,0.00017572,2]
[379480435,1755311308332,-1298.02930658,0.0001758,2]
[379480437,1755311317049,-400.0,0.0001758,2]
[379480438,1755311323009,-608.23,0.0001758,2]
[379480439,1755311325210,218.50386901,0.0002,30]
[379480440,1755311331538,-390.95,0.0001758,2]
[379480441,1755311339865,-400.0,0.0001758,2]
[379480442,1755311345522,-806.95,0.0001758,2]
[379480443,1755311352566,-300.0,0.00017579,2]
[379480444,1755311352602,-1096.65,0.0001758,2]
[379480448,1755311359585,-227.86,0.00017579,2]
[379480449,1755311359612,-438.14,0.00017579,2]
[379480450,1755311367217,-400.0,0.0001758,2]
[379480451,1755311368139,172.211534,0.00017491,2]
[379480452,1755311374213,-2077.52,0.0001758,2]
[379480453,1755311381640,-1933.28,0.0001758,2]
[379480454,1755311389628,-300.06,0.0001758,2]
[379480455,1755311396635,-342.46489798,0.00017579,2]
[379480456,1755311396661,-28.49020404,0.00017579,2]
[379480457,1755311398447,8311.9870777,0.0001745,2]
[379480458,1755311404128,-300.0,0.00017579,2]
[379480459,1755311404162,-300.0,0.00017579,2]
[379480460,1755311404294,-329.81,0.00017579,2]
[379480461,1755311411041,-187.89,0.0001757,2]
[379480462,1755311411064,-500.0,0.00017573,2]
[379480463,1755311411087,-500.0,0.00017573,2]
[379480464,1755311411110,-870.19,0.00017579,2]
[379480465,1755311411135,-737941.92,0.0001758,2]
[379480466,1755311411326,-187.89,0.0001757,2]
[379480467,1755311411380,-155.24,0.0001758,2]
[379480468,1755311418498,-400.0,0.0001757,2]
[379480469,1755311425270,-619.17,0.0001757,2]
[379480470,1755311425312,-322.54,0.0001757,2]
[379480483,1755311432333,-296.63,0.0001757,2]
[379480484,1755311432343,-655.40397621,0.0001757,2]
[379480485,1755311432352,-500.0,0.00017573,2]
[379480486,1755311432361,-500.0,0.00017573,2]
[379480487,1755311432370,-178.98801185,0.00017578,2]
[379480488,1755311432379,-232.47350602,0.00017578,2]
[379480489,1755311432388,-895.8325189,0.00017579,5]
[379480490,1755311432436,-389.91683072,0.00017578,2]
[379480491,1755311432463,-208.43787775,0.00017579,5]
[379480494,1755311432616,-227.24374808,0.00017578,2]
[379480496,1755311432626,-219.15507788,0.00017578,2]
[379480499,1755311432636,-351570.75932406,0.00017579,2]
[379480502,1755311432647,-356830.521,0.00017579,2]
[379480505,1755311432658,-35000.0,0.00017579,2]
[379480515,1755311432933,-962.94058306,0.00017579,2]
[379480516,1755311432944,-1890.44816829,0.00017579,2]
[379480517,1755311432955,-611.52910207,0.00017579,2]
[379480518,1755311433031,-29.96126274,0.00017579,2]
[379480576,1755311439115,-3196.59474201,0.00017579,2]
[379480578,1755311439127,-113933.424,0.00017579,2]
[379480580,1755311439138,-142169.468,0.00017579,2]
[379480582,1755311439150,-16104.0,0.00017579,2]
[379480585,1755311439161,-10290.0,0.00017579,2]
[379480587,1755311439173,-23500.0,0.00017579,2]
[379480598,1755311439275,-1572619.77939892,0.00017579,2]
[379480600,1755311439284,-36994.25172115,0.00017579,2]
[379480602,1755311439295,-2238907.87156941,0.0001758,2]
[379480604,1755311439304,-19.56831089,0.00017761,2]
[379480606,1755311439314,-175.1203467,0.00017762,2]
[379480608,1755311439323,-175.1203467,0.00017951,2]
[379480610,1755311439333,-11141.20410723,0.00018,2]
[379480612,1755311439342,-3111.4014997,0.00018,2]
[379480614,1755311439352,-1000.0,0.00018121,2]
[379480616,1755311439362,-1000.0,0.00018121,2]
[379480618,1755311439372,-1000.0,0.00018121,2]
[379480620,1755311439381,-999.03755082,0.00018121,2]
[379480622,1755311439391,-175.1203467,0.00018141,2]
[379480624,1755311439400,-241.58811498,0.00018185,2]
[379480627,1755311439411,-175.1203467,0.00018331,2]
[379480629,1755311439421,-151.0,0.00018387,2]
[379480631,1755311439430,-151.0,0.00018395,2]
[379480633,1755311439440,-538.83,0.000184,2]
[379480635,1755311439449,-468.42,0.000184,2]
[379480637,1755311439458,-226.68311216,0.000184,2]
[379480639,1755311439468,-160.0,0.00018406,2]
[379480641,1755311439477,-151.0,0.00018411,2]
[379480643,1755311439487,-300.39,0.000185,2]
[379480645,1755311439496,-544.38,0.000185,2]
[379480647,1755311439506,-377.29,0.000185,2]
[379480649,1755311439516,-151.2,0.000185,2]
[379480651,1755311439525,-309.01856,0.0001851,2]
[379480653,1755311439535,-175.1203467,0.00018521,2]
[379480655,1755311439545,-3417.661,0.00018583,2]
[379480657,1755311439554,-4150.0,0.00018583,2]
[379480659,1755311439564,-6089.0,0.00018583,2]
[379480661,1755311439573,-200.0,0.00018588,2]
[379480663,1755311439583,-519.8917,0.000186,2]
[379480665,1755311439592,-671.51,0.00018613,2]
[379480666,1755311439602,-400.0,0.00018629,2]
[379480667,1755311439611,-1544.29622978,0.0001865,2]
[379480668,1755311439620,-185.92039664,0.00018652,2]
[379480669,1755311439630,-1828.72465439,0.00018656,2]
[379480670,1755311439639,-136260.10273302,0.00018657,2]
[379480671,1755311439649,-3004.68755852,0.00018657,2]
[379480672,1755311439659,-136260.10273302,0.00018658,2]
[379480673,1755311439672,-277.35679052,0.00018658,2]
[379480674,1755311439682,-1544.29622978,0.00018662,2]
[379480675,1755311439691,-136260.10273302,0.00018665,2]
[379480676,1755311439700,-1500.0,0.00018668,2]
[379480677,1755311439711,-1500.0,0.00018668,2]
[379480678,1755311439720,-1500.0,0.00018668,2]
[379480679,1755311439730,-8293.56,0.00018669,2]
[379480680,1755311439739,-1828.72465439,0.00018672,2]
[379480681,1755311439751,-500.0,0.00018673,2]
[379480682,1755311439761,-504.50585883,0.00018673,2]
[379480683,1755311439770,-262.33102144,0.00018673,2]
[379480684,1755311439780,-527.55629351,0.00018673,2]
[379480686,1755311439789,-500.0,0.00018673,2]
[379480688,1755311439798,-504.26956205,0.00018673,2]
[379480690,1755311439808,-503.12694921,0.00018673,2]
[379480692,1755311439817,-500.0,0.00018673,2]
[379480694,1755311439828,-500.0,0.00018673,2]
[379480696,1755311439837,-3004.68755852,0.00018677,2]
[379480698,1755311439847,-1828.72465439,0.00018681,2]
[379480700,1755311439856,-350.0,0.00018681,2]
[379480702,1755311439866,-1544.29622978,0.00018681,2]
[379480704,1755311439875,-1828.72465439,0.00018684,2]
[379480706,1755311439884,-160.0,0.00018689,2]
[379480708,1755311439894,-719.82,0.00018689,2]
[379480710,1755311439904,-655.40397621,0.0001869,2]
[379480712,1755311439913,-1828.72465439,0.00018691,2]
[379480714,1755311439923,-715.46807864,0.00018693,2]
[379480716,1755311439932,-1544.29622978,0.00018697,2]
[379480718,1755311439941,-5280.9345971,0.00018698,2]
[379480720,1755311439950,-211.95758554,0.00018699,2]
[379480722,1755311439960,-300.0,0.00018699,2]
[379480725,1755311439969,-666.0,0.00018699,2]
[379480728,1755311439978,-607.68,0.00018699,2]
[379480730,1755311439988,-300.0,0.00018699,2]
[379480732,1755311439997,-666.0,0.00018699,2]
[379480734,1755311440007,-250000.0,0.000187,2]
[379480736,1755311440017,-468.16,0.000187,2]
[379480738,1755311440026,-360.24,0.000187,2]
[379480740,1755311440036,-538.83,0.000187,2]
[379480742,1755311440046,-897799.35,0.000187,2]
[379480744,1755311440055,-309.01856,0.000187,2]
[379480746,1755311440064,-309.01856,0.000187,2]
[379480748,1755311440074,-309.01856,0.000187,2]
[379480750,1755311440084,-309.01856,0.000187,2]
[379480752,1755311440094,-309.01857,0.000187,2]
[379480754,1755311440104,-1544.29622978,0.00018702,2]
[379480756,1755311440114,-309.061292,0.00018703,2]
[379480758,1755311440124,-597.5377625,0.00018703,2]
[379480760,1755311440133,-168.0,0.00018703,2]
[379480762,1755311440143,-3004.68755852,0.00018705,2]
[379480764,1755311440153,-230.89698546,0.00018707,2]
[379480766,1755311440162,-230.89698546,0.0001871,2]
[379480768,1755311440173,-175.1203467,0.0001871,2]
[379480770,1755311440183,-185.92039664,0.00018711,2]
[379480772,1755311440192,-3004.68755852,0.00018716,2]
[379480774,1755311440202,-643.401,0.00018716,2]
[379480776,1755311440211,-715.46807864,0.00018716,2]
[379480778,1755311440221,-365.21747542,0.00018718,2]
[379480780,1755311440231,-252.68558974,0.00018718,2]
[379480783,1755311440241,-230.89698546,0.00018719,2]
[379480785,1755311440250,-136260.10273302,0.00018722,2]
[379480786,1755311440260,-566.0,0.00018722,2]
[379480788,1755311440270,-599.0,0.00018722,2]
[379480790,1755311440279,-1656.0,0.00018722,2]
[379480792,1755311440289,-1172.0,0.00018722,2]
[379480794,1755311440298,-894.0,0.00018722,2]
[379480796,1755311440308,-309.061292,0.00018722,2]
[379480798,1755311440318,-202.2793456,0.00018722,2]
[379480800,1755311440327,-136260.10273302,0.00018723,2]
[379480802,1755311440337,-150.0,0.00018725,2]
[379480804,1755311440349,-1003.28002139,0.00018726,2]
[379480806,1755311440360,-1000.0,0.00018726,2]
[379480809,1755311440371,-1000.0,0.00018726,2]
[379480811,1755311440380,-164.9176753,0.00018727,2]
[379480813,1755311440390,-300.0,0.00018727,2]
[379480815,1755311440400,-150.0,0.00018727,2]
[379480817,1755311440410,-150.0,0.00018728,2]
[379480819,1755311440420,-150.0,0.00018728,2]
[379480821,1755311440430,-150.0,0.00018728,2]
[379480823,1755311440440,-150.005,0.00018728,2]
[379480825,1755311440450,-150.068,0.00018728,2]
[379480827,1755311440459,-150.068,0.00018728,2]
[379480829,1755311440469,-150.0,0.00018728,2]
[379480831,1755311440478,-150.0,0.00018728,2]
[379480832,1755311440487,-150.0,0.00018728,2]
[379480834,1755311440496,-150.0,0.00018728,2]
[379480836,1755311440506,-150.07,0.00018728,2]
[379480839,1755311440516,-597.80034342,0.00018728,2]
[379480841,1755311440526,-500.0,0.00018728,2]
[379480843,1755311440537,-518.52188471,0.00018728,2]
[379480845,1755311440547,-1000.0,0.00018729,2]
[379480847,1755311440557,-202.38312534,0.00018729,2]
[379480849,1755311440568,-301.06054315,0.0001873,2]
[379480851,1755311440577,-223.79296731,0.00018731,2]
[379480853,1755311440587,-211.73122843,0.00018732,2]
[379480855,1755311440596,-365.21747542,0.00018732,2]
[379480857,1755311440607,-612.83204471,0.00018732,2]
[379480859,1755311440616,-518.52188471,0.00018732,2]
[379480860,1755311440626,-853.14389371,0.00018733,2]
[379480861,1755311440635,-1000.0,0.00018733,2]
[379480862,1755311440643,-470.13454332,0.00018734,2]
[379480863,1755311440653,-300.54164449,0.00018734,2]
[379480864,1755311440663,-597.80034342,0.00018734,2]
[379480865,1755311440676,-1000.0,0.00018735,2]
[379480866,1755311440686,-365.21747542,0.00018735,2]
[379480867,1755311440696,-470.13454332,0.00018737,2]
[379480868,1755311440706,-309.061292,0.00018738,2]
[379480869,1755311440715,-715.46807864,0.00018739,2]
[379480870,1755311440724,-1000.0,0.00018739,2]
[379480871,1755311440734,-170239.53355707,0.0001874,2]
[379480872,1755311440746,-216.62398632,0.0001874,2]
[379480873,1755311440757,-3004.68755852,0.00018741,2]
[379480874,1755311440766,-252.68558974,0.00018741,2]
[379480875,1755311440776,-583.60236442,0.00018742,2]
[379480876,1755311440785,-1243.99639617,0.00018742,2]
[379480877,1755311440796,-168.0,0.00018743,2]
[379480878,1755311440805,-470.13454332,0.00018743,2]
[379480879,1755311440815,-301.06054315,0.00018743,2]
[379480880,1755311440824,-2161.99443148,0.00018744,2]
[379480881,1755311440833,-185.92039664,0.00018744,2]
[379480882,1755311440843,-583.60236442,0.00018744,2]
[379480883,1755311440852,-309.061292,0.00018744,2]
[379480884,1755311440861,-150.0,0.00018745,2]
[379480885,1755311440872,-365.21747542,0.00018746,2]
[379480886,1755311440881,-470.13454332,0.00018746,2]
[379480888,1755311440891,-152.54906152,0.00018747,2]
[379480890,1755311440900,-1828.72465439,0.00018747,2]
[379480892,1755311440910,-381.44858198,0.00018748,2]
[379480894,1755311440921,-381.44858198,0.00018748,2]
[379480896,1755311440930,-226.69789937,0.00018748,2]
[379480898,1755311440940,-153.41786878,0.00018748,2]
[379480900,1755311440949,-382.73970584,0.00018748,2]
[379480902,1755311440959,-3004.68755852,0.0001875,2]
[379480904,1755311440968,-1243.99639617,0.00018751,2]
[379480906,1755311440977,-252.68558974,0.00018751,2]
[379480908,1755311440986,-1828.72465439,0.00018752,2]
[379480910,1755311440996,-583.60236442,0.00018752,2]
[379480912,1755311441005,-252.68558974,0.00018752,2]
[379480914,1755311441014,-331.10174888,0.00018753,2]
[379480916,1755311441023,-989.21823724,0.00018753,2]
[379480918,1755311441032,-300.54164449,0.00018753,2]
[379480920,1755311441042,-202.38312534,0.00018754,2]
[379480922,1755311441053,-331.10174888,0.00018754,2]
[379480924,1755311441062,-339.99390857,0.00018755,2]
[379480926,1755311441071,-1000.0,0.00018755,2]
[379480928,1755311441081,-2161.99443148,0.00018756,2]
[379480930,1755311441091,-1242.26559919,0.00018757,2]
[379480932,1755311441100,-170239.53355707,0.00018758,2]
[379480934,1755311441109,-150.0,0.00018759,2]
[379480936,1755311441119,-1387.76841277,0.00018759,2]
[379480938,1755311441129,-3846.80426958,0.00018759,2]
[379480940,1755311441138,-185.92039664,0.0001876,2]
[379480942,1755311441147,-6651.52492708,0.0001876,2]
[379480944,1755311441157,-518.52188471,0.0001876,2]
[379480946,1755311441166,-6651.52492708,0.00018761,2]
[379480948,1755311441176,-518.52188471,0.00018761,2]
[379480950,1755311441185,-164.91767528,0.00018762,2]
[379480952,1755311441195,-715.46807864,0.00018762,2]
[379480954,1755311441203,-381.44858198,0.00018762,2]
[379480956,1755311441213,-185.92039664,0.00018762,2]
[379480958,1755311441222,-1714.36147465,0.00018763,2]
[379480959,1755311441232,-5230.7530047,0.00018764,2]
[379480961,1755311441241,-3846.80426958,0.00018764,2]
[379480963,1755311441250,-612.83204471,0.00018765,2]
[379480965,1755311441259,-654.5665024,0.00018765,2]
[379480967,1755311441268,-230.89698546,0.00018765,2]
[379480969,1755311441277,-170239.53355707,0.00018766,2]
[379480971,1755311441286,-301.06054315,0.00018766,2]
[379480973,1755311441296,-3846.80426958,0.00018766,2]
[379480974,1755311441306,-381.44858198,0.00018767,2]
[379480977,1755311441316,-1000.0,0.00018767,2]
[379480978,1755311441326,-2161.99443148,0.00018768,2]
[379480980,1755311441335,-185.92039664,0.00018768,2]
[379480982,1755311441345,-381.44858198,0.00018769,2]
[379480984,1755311441354,-1544.29622978,0.00018769,2]
[379480986,1755311441364,-170239.53355707,0.00018769,2]
[379480988,1755311441373,-1855.79274557,0.0001877,2]
[379480990,1755311441382,-202.38312534,0.0001877,2]
[379480992,1755311441392,-4537.06649098,0.0001877,2]
[379480994,1755311441401,-151.0,0.00018771,2]
[379480996,1755311441411,-151.0,0.00018771,2]
[379480998,1755311441420,-151.0,0.00018771,2]
[379481000,1755311441430,-2027.3,0.00018771,2]
[379481002,1755311441439,-360.631697,0.00018772,2]
[379481004,1755311441448,-360.631697,0.00018772,2]
[379481006,1755311441458,-151.0,0.00018772,2]
[379481008,1755311441467,-645.96959,0.00018772,2]
[379481010,1755311441477,-645.96959,0.00018772,2]
[379481012,1755311441486,-156.174721,0.00018772,2]
[379481014,1755311441495,-403.48097,0.00018772,2]
[379481016,1755311441505,-156.174721,0.00018772,2]
[379481018,1755311441514,-403.48097,0.00018772,2]
[379481020,1755311441524,-466.273602,0.00018772,2]
[379481022,1755311441533,-466.273602,0.00018772,2]
[379481024,1755311441542,-202.2793456,0.00018772,2]
[379481026,1755311441551,-3846.80426958,0.00018773,2]
[379481028,1755311441560,-357.21123811,0.00018773,2]
[379481030,1755311441569,-252.68558974,0.00018773,2]
[379481032,1755311441579,-150.0,0.00018774,2]
[379481034,1755311441588,-1544.29622978,0.00018774,2]
[379481036,1755311441597,-168.0,0.00018775,2]
[379481038,1755311441607,-331.10174888,0.00018776,2]
[379481040,1755311441616,-150.0,0.00018776,2]
[379481042,1755311441626,-612.83204471,0.00018777,2]
[379481044,1755311441635,-202.2793456,0.00018777,2]
[379481046,1755311441645,-470.13454332,0.00018778,2]
[379481048,1755311441654,-309.061292,0.00018778,2]
[379481050,1755311441664,-150.0,0.00018778,2]
[379481052,1755311441677,-223.79296731,0.00018778,2]
[379481054,1755311441687,-597.80034342,0.00018779,2]
[379481056,1755311441697,-150.0,0.0001878,2]
[379481058,1755311441707,-339.99390857,0.0001878,2]
[379481060,1755311441718,-4537.06649098,0.00018781,2]
[379481062,1755311441730,-136260.10273302,0.00018782,2]
[379481064,1755311441740,-150.0,0.00018783,2]
[379481067,1755311441749,-3004.68755852,0.00018783,2]
[379481068,1755311441760,-331.10174888,0.00018783,2]
[379481070,1755311441769,-5230.7530047,0.00018783,2]
[379481072,1755311441778,-185.92039664,0.00018784,2]
[379481074,1755311441788,-853.14389371,0.00018785,2]
[379481076,1755311441797,-202.38312534,0.00018785,2]
[379481078,1755311441806,-715.46807864,0.00018785,2]
[379481080,1755311441816,-381.44858198,0.00018786,2]
[379481082,1755311441826,-301.06054315,0.00018786,2]
[379481084,1755311441835,-136260.10273302,0.00018787,2]
[379481086,1755311441844,-302.24,0.00018787,2]
[379481088,1755311441853,-1387.76841277,0.00018789,2]
[379481090,1755311441862,-583.60236442,0.00018789,2]
[379481092,1755311441871,-853.14389371,0.0001879,2]
[379481094,1755311441881,-518.52188471,0.00018791,2]
[379481096,1755311441890,-42769.10551681,0.00018791,2]
[379481198,1755311443095,-429.71636973,0.00018583,2]
[379481207,1755311444261,-699.70945577,0.00018485,2]
[379481208,1755311444270,-825.28363027,0.00018583,2]
[379481209,1755311444280,-1955.48065389,0.000186,2]
[379481210,1755311444290,-5374.6,0.00018602,2]
[379481211,1755311444299,-1955.48065389,0.0001866,2]
[379481212,1755311444308,-1955.48065389,0.0001872,2]
[379481213,1755311444317,-1955.48065389,0.0001878,2]
[379481214,1755311444326,-24583.4228621,0.00018791,2]
[379481215,1755311444357,400.0,0.00026,30]
[379481216,1755311444370,-5022.70048876,0.00018791,2]
[379481217,1755311444385,-763.142274,0.00018791,2]
[379481218,1755311446451,-360.24,0.00018613,2]
[379481219,1755311446462,-18.88940536,0.00018791,2]
[379481220,1755311446525,-12226.83111324,0.00018791,2]